fUST/lending_fUST_20251010
["ID","MTS","AMOUNT","RATE_DAILY","PERIOD"]
[390458174,1760052654150,-500.0,0.00016986,2]
[390458176,1760052654159,-500.0,0.00016986,2]
[390458178,1760052654168,-500.0,0.00016986,2]
[390458180,1760052654177,-500.0,0.00016986,2]
[390458182,1760052654186,-500.0,0.00016986,2]
[390458184,1760052654195,-593.95,0.00016986,2]
[390458186,1760052654204,-175.04,0.00016986,2]
[390458188,1760052654213,-500.0,0.00016986,2]
[390458190,1760052654222,-500.0,0.00016986,2]
[390458192,1760052654231,-500.0,0.00016986,2]
[390458194,1760052654241,-500.0,0.00016986,2]
[390458196,1760052654252,-246.94,0.00016986,2]
[390458197,1760052654262,-423.64,0.00016986,2]
[390458200,1760052654272,-500.0,0.00016986,2]
[390458201,1760052654281,-507.49,0.00016986,2]
[390458203,1760052654290,-535.99,0.00016986,2]
[390458205,1760052654299,-631.85,0.00016986,2]
[390458207,1760052654308,-151.0,0.00016986,2]
[390458209,1760052654317,-500.0,0.00016986,2]
[390458211,1760052654326,-151.0,0.00016986,2]
[390458213,1760052654335,-770.97,0.00016986,2]
[390458215,1760052654344,-490.35,0.00016986,2]
[390458217,1760052654354,-636.27,0.00016986,2]
[390458219,1760052654363,-3323.14,0.00016986,2]
[390458221,1760052654372,-500.0,0.00016986,2]
[390458223,1760052654381,-151.0,0.00016986,2]
[390458225,1760052654391,-694.98,0.00016986,2]
[390458227,1760052654400,-500.0,0.00016986,2]
[390458229,1760052654409,-1796.55,0.00016986,2]
[390458231,1760052654419,-500.0,0.00016986,2]
[390458233,1760052654428,-500.0,0.00016986,2]
[390458235,1760052654438,-5308.6,0.00016986,2]
[390458237,1760052654447,-500.0,0.00016986,2]
[390458239,1760052654456,-238.18,0.00016986,2]
[390458241,1760052654465,-151.0,0.00016986,2]
[390458243,1760052654475,-151.0,0.00016986,2]
[390458245,1760052654484,-500.0,0.00016986,2]
[390458247,1760052654493,-180.284543,0.00016986,2]
[390458249,1760052654503,-500.0,0.00016986,2]
[390458251,1760052654512,-643.09,0.00016986,2]
[390458253,1760052654521,-702.42,0.00016986,2]
[390458255,1760052654530,-2609.13,0.00016986,2]
[390458257,1760052654539,-515.72,0.00016986,2]
[390458259,1760052654548,-151.0,0.00016986,2]
[390458261,1760052654557,-500.0,0.00016986,2]
[390458263,1760052654567,-926.98,0.00016986,2]
[390458265,1760052654576,-500.0,0.00016986,2]
[390458267,1760052654585,-500.0,0.00016986,2]
[390458269,1760052654595,-507.61,0.00016986,2]
[390458270,1760052654605,-500.0,0.00016986,2]
[390458272,1760052654614,-500.0,0.00016986,2]
[390458274,1760052654623,-740.32,0.00016986,2]
[390458276,1760052654632,-622.77,0.00016986,2]
[390458278,1760052654642,-500.0,0.00016986,2]
[390458280,1760052654651,-1592.83,0.00016986,2]
[390458282,1760052654660,-3674.57,0.00016986,2]
[390458285,1760052654670,-1109.53,0.00016986,2]
[390458286,1760052654679,-500.0,0.00016986,2]
[390458288,1760052654688,-500.0,0.00016986,2]
[390458290,1760052654698,-151.0,0.00016986,2]
[390458292,1760052654707,-151.0,0.00016986,2]
[390458294,1760052654716,-500.0,0.00016986,2]
[390458296,1760052654725,-500.0,0.00016986,2]
[390458298,1760052654734,-500.0,0.00016986,2]
[390458300,1760052654743,-500.0,0.00016986,2]
[390458302,1760052654752,-4909.41,0.00016986,2]
[390458304,1760052654762,-500.0,0.00016986,2]
[390458306,1760052654771,-500.0,0.00016986,2]
[390458308,1760052654780,-518.79,0.00016986,2]
[390458310,1760052654789,-500.0,0.00016986,2]
[390458312,1760052654799,-821.67,0.00016986,2]
[390458314,1760052654807,-500.0,0.00016986,2]
[390458316,1760052654817,-500.0,0.00016986,2]
[390458318,1760052654826,-590.45,0.00016986,2]
[390458320,1760052654835,-823.34,0.00016986,2]
[390458322,1760052654844,-1394.28,0.00016986,2]
[390458324,1760052654853,-500.0,0.00016986,2]
[390458326,1760052654862,-607.64,0.00016986,2]
[390458328,1760052654871,-615.39,0.00016986,2]
[390458330,1760052654880,-745.08,0.00016986,2]
[390458332,1760052654889,-500.0,0.00016986,2]
[390458334,1760052654898,-1737.81,0.00016986,2]
[390458336,1760052654907,-228.91448979,0.00016986,2]
[390458338,1760052654915,-630.45,0.00016986,2]
[390458339,1760052654927,-692.15,0.00016986,2]
[390458342,1760052654937,-935.89,0.00016986,2]
[390458343,1760052654945,-500.0,0.00016986,2]
[390458345,1760052654954,-4559.56,0.00016986,2]
[390458347,1760052654963,-1000.11,0.00016986,2]
[390458349,1760052654974,-500.0,0.00016986,2]
[390458351,1760052654984,-500.0,0.00016986,2]
[390458353,1760052654993,-2438.6,0.00016986,2]
[390458355,1760052655004,-614.23,0.00016986,2]
[390458357,1760052655014,-500.0,0.00016986,2]
[390458359,1760052655023,-500.0,0.00016986,2]
[390458361,1760052655031,-500.0,0.00016986,2]
[390458363,1760052655040,-500.0,0.00016986,2]
[390458365,1760052655050,-500.0,0.00016986,2]
[390458367,1760052655059,-708.62,0.00016986,2]
[390458369,1760052655068,-500.0,0.00016986,2]
[390458371,1760052655077,-524.9,0.00016986,2]
[390458373,1760052655086,-1887.49,0.00016986,2]
[390458375,1760052655096,-500.0,0.00016986,2]
[390458377,1760052655105,-151.0,0.00016986,2]
[390458379,1760052655115,-500.0,0.00016986,2]
[390458381,1760052655124,-151.0,0.00016986,2]
[390458383,1760052655133,-523.6,0.00016986,2]
[390458385,1760052655142,-500.0,0.00016986,2]
[390458387,1760052655151,-151.0,0.00016986,2]
[390458389,1760052655160,-151.0,0.00016986,2]
[390458391,1760052655171,-1718.85,0.00016986,2]
[390458393,1760052655179,-500.0,0.00016986,2]
[390458395,1760052655190,-1939.01,0.00016986,2]
[390458397,1760052655199,-598.25,0.00016986,2]
[390458399,1760052655208,-1026.352848,0.00017,2]
[390458401,1760052655217,-4276.39070458,0.00017,2]
[390458403,1760052655227,-1000.0,0.00017021,2]
[390458405,1760052655236,-1000.0,0.00017021,2]
[390458407,1760052655246,-1000.0,0.00017021,2]
[390458409,1760052655255,-1000.0,0.00017021,2]
[390458411,1760052655263,-1000.0,0.00017021,2]
[390458413,1760052655273,-1000.0,0.00017021,2]
[390458415,1760052655282,-500.0,0.00017021,2]
[390458416,1760052655291,-1000.0,0.00017021,2]
[390458418,1760052655300,-1000.0,0.00017021,2]
[390458420,1760052655309,-1000.0,0.00017021,2]
[390458421,1760052655318,-284.02140231,0.00017021,2]
[390458422,1760052655328,-1000.0,0.00017021,2]
[390458423,1760052655336,-1000.0,0.00017021,2]
[390458424,1760052655346,-1000.0,0.00017021,2]
[390458425,1760052655355,-1000.0,0.00017021,2]
[390458426,1760052655364,-500.85193881,0.00017021,2]
[390458427,1760052655373,-1000.0,0.00017021,2]
[390458428,1760052655382,-416.61937395,0.00017021,2]
[390458430,1760052655391,-1000.0,0.00017021,2]
[390458432,1760052655400,-500.0,0.00017021,2]
[390458434,1760052655409,-500.0,0.00017021,2]
[390458436,1760052655418,-1000.0,0.00017021,2]
[390458437,1760052655427,-1000.0,0.00017021,2]
[390458439,1760052655436,-1000.0,0.00017021,2]
[390458441,1760052655445,-150.0,0.0001711,2]
[390458443,1760052655454,-980.0,0.00017124,2]
[390458445,1760052655463,-630.0,0.00017124,2]
[390458447,1760052655473,-2159.0,0.00017124,2]
[390458449,1760052655482,-151.0,0.00017124,2]
[390458451,1760052655492,-151.0,0.00017124,2]
[390458453,1760052655501,-411.0,0.00017124,2]
[390458455,1760052655511,-413.063,0.00017124,2]
[390458457,1760052655520,-168.01695143,0.00017131,2]
[390458460,1760052655529,-1308.84010418,0.00017202,2]
[390458461,1760052655539,-4195.0,0.00017231,2]
[390458463,1760052655548,-165.21529698,0.00017232,2]
[390458465,1760052655558,-256.17732029,0.0001725,2]
[390458467,1760052655567,-214.18640301,0.00017258,2]
[390458469,1760052655576,-500.0,0.00017258,2]
[390458471,1760052655585,-500.0,0.00017258,2]
[390458473,1760052655594,-642.46180802,0.00017258,2]
[390458475,1760052655603,-500.0,0.00017258,2]
[390458477,1760052655612,-151.0,0.0001726,2]
[390458480,1760052655623,-151.0,0.0001726,2]
[390458481,1760052655632,-304.23413138,0.0001726,2]
[390458483,1760052655641,-500.0,0.0001726,2]
[390458486,1760052655650,-180.15933041,0.0001726,2]
[390458487,1760052655660,-246.9147262,0.0001726,2]
[390458490,1760052655669,-151.0,0.0001726,2]
[390458492,1760052655678,-500.0,0.0001726,2]
[390458494,1760052655688,-500.0,0.0001726,2]
[390458496,1760052655697,-500.0,0.0001726,2]
[390458498,1760052655707,-500.0,0.0001726,2]
[390458500,1760052655716,-273.24,0.0001726,2]
[390458502,1760052655725,-197.8,0.0001726,2]
[390458504,1760052655735,-500.0,0.0001726,2]
[390458506,1760052655743,-500.0,0.0001726,2]
[390458508,1760052655753,-224.31961796,0.0001726,2]
[390458510,1760052655762,-500.0,0.0001726,2]
[390458512,1760052655771,-500.0,0.0001726,2]
[390458514,1760052655781,-500.0,0.0001726,2]
[390458516,1760052655790,-500.0,0.0001726,2]
[390458518,1760052655799,-619.54587656,0.0001726,2]
[390458520,1760052655808,-500.0,0.0001726,2]
[390458522,1760052655817,-500.0,0.0001726,2]
[390458524,1760052655827,-1461.88,0.0001726,2]
[390458526,1760052655836,-602.72,0.0001726,2]
[390458528,1760052655845,-500.0,0.0001726,2]
[390458530,1760052655855,-1681.53,0.0001726,2]
[390458532,1760052655866,-381.54414387,0.0001726,2]
[390458534,1760052655880,-500.0,0.0001726,2]
[390458536,1760052655896,-858.27,0.0001726,2]
[390458538,1760052655915,-768.91,0.0001726,2]
[390458540,1760052655934,-677.98,0.0001726,2]
[390458542,1760052655952,-500.0,0.0001726,2]
[390458544,1760052655969,-500.0,0.0001726,2]
[390458546,1760052655981,-500.0,0.0001726,2]
[390458548,1760052655990,-500.0,0.0001726,2]
[390458550,1760052655999,-571.78,0.0001726,2]
[390458552,1760052656008,-500.0,0.0001726,2]
[390458554,1760052656017,-500.0,0.0001726,2]
[390458556,1760052656027,-500.0,0.0001726,2]
[390458558,1760052656036,-500.0,0.0001726,2]
[390458560,1760052656045,-500.0,0.0001726,2]
[390458562,1760052656055,-151.0,0.0001726,2]
[390458564,1760052656065,-151.0,0.0001726,2]
[390458566,1760052656074,-209.04,0.0001726,2]
[390458568,1760052656084,-500.0,0.0001726,2]
[390458570,1760052656093,-500.0,0.0001726,2]
[390458572,1760052656104,-299.201492,0.0001726,2]
[390458574,1760052656113,-737.89,0.0001726,2]
[390458576,1760052656123,-500.0,0.0001726,2]
[390458578,1760052656133,-500.0,0.0001726,2]
[390458580,1760052656142,-500.0,0.0001726,2]
[390458582,1760052656151,-500.0,0.0001726,2]
[390458584,1760052656160,-500.0,0.0001726,2]
[390458586,1760052656170,-569.51,0.0001726,2]
[390458588,1760052656179,-500.0,0.0001726,2]
[390458590,1760052656188,-627.48,0.0001726,2]
[390458592,1760052656198,-500.0,0.0001726,2]
[390458595,1760052656209,-200.11,0.0001726,2]
[390458597,1760052656218,-500.0,0.0001726,2]
[390458599,1760052656227,-500.0,0.0001726,2]
[390458601,1760052656237,-535.99,0.0001726,2]
[390458603,1760052656246,-161.912305,0.0001726,2]
[390458605,1760052656255,-770.97,0.0001726,2]
[390458607,1760052656264,-636.27,0.0001726,2]
[390458609,1760052656274,-3323.14,0.0001726,2]
[390458610,1760052656283,-500.0,0.0001726,2]
[390458612,1760052656292,-694.98,0.0001726,2]
[390458614,1760052656301,-1796.55,0.0001726,2]
[390458616,1760052656311,-500.0,0.0001726,2]
[390458618,1760052656320,-500.0,0.0001726,2]
[390458620,1760052656330,-500.0,0.0001726,2]
[390458622,1760052656339,-5308.6,0.0001726,2]
[390458624,1760052656348,-500.0,0.0001726,2]
[390458626,1760052656358,-151.0,0.0001726,2]
[390458628,1760052656367,-288.782122,0.0001726,2]
[390458630,1760052656380,-500.0,0.0001726,2]
[390458632,1760052656389,-500.0,0.0001726,2]
[390458634,1760052656398,-643.09,0.0001726,2]
[390458637,1760052656407,-702.42,0.0001726,2]
[390458639,1760052656416,-2609.13,0.0001726,2]
[390458640,1760052656426,-515.72,0.0001726,2]
[390458643,1760052656435,-151.0,0.0001726,2]
[390458645,1760052656444,-926.98,0.0001726,2]
[390458647,1760052656454,-500.0,0.0001726,2]
[390458648,1760052656463,-507.61,0.0001726,2]
[390458650,1760052656472,-500.0,0.0001726,2]
[390458652,1760052656481,-740.32,0.0001726,2]
[390458655,1760052656491,-622.77,0.0001726,2]
[390458657,1760052656500,-500.0,0.0001726,2]
[390458659,1760052656510,-1592.83,0.0001726,2]
[390458661,1760052656519,-3674.57,0.0001726,2]
[390458663,1760052656528,-1109.53,0.0001726,2]
[390458665,1760052656538,-151.0,0.0001726,2]
[390458666,1760052656547,-151.0,0.0001726,2]
[390458669,1760052656557,-500.0,0.0001726,2]
[390458671,1760052656566,-500.0,0.0001726,2]
[390458673,1760052656576,-500.0,0.0001726,2]
[390458674,1760052656585,-4909.41,0.0001726,2]
[390458676,1760052656594,-500.0,0.0001726,2]
[390458678,1760052656604,-500.0,0.0001726,2]
[390458680,1760052656613,-518.79,0.0001726,2]
[390458682,1760052656623,-500.0,0.0001726,2]
[390458684,1760052656633,-821.67,0.0001726,2]
[390458686,1760052656642,-590.45,0.0001726,2]
[390458689,1760052656652,-823.34,0.0001726,2]
[390458691,1760052656661,-1394.28,0.0001726,2]
[390458692,1760052656670,-607.64,0.0001726,2]
[390458694,1760052656679,-615.39,0.0001726,2]
[390458696,1760052656688,-745.08,0.0001726,2]
[390458698,1760052656698,-1737.81,0.0001726,2]
[390458700,1760052656707,-630.45,0.0001726,2]
[390458702,1760052656716,-692.15,0.0001726,2]
[390458704,1760052656726,-935.89,0.0001726,2]
[390458706,1760052656735,-4559.56,0.0001726,2]
[390458708,1760052656744,-1000.11,0.0001726,2]
[390458710,1760052656753,-500.0,0.0001726,2]
[390458712,1760052656762,-500.0,0.0001726,2]
[390458714,1760052656772,-2438.6,0.0001726,2]
[390458716,1760052656781,-614.23,0.0001726,2]
[390458718,1760052656790,-500.0,0.0001726,2]
[390458720,1760052656799,-500.0,0.0001726,2]
[390458722,1760052656807,-500.0,0.0001726,2]
[390458724,1760052656816,-508.18,0.0001726,2]
[390458726,1760052656825,-708.62,0.0001726,2]
[390458728,1760052656834,-524.9,0.0001726,2]
[390458729,1760052656843,-1887.49,0.0001726,2]
[390458731,1760052656852,-500.0,0.0001726,2]
[390458733,1760052656861,-500.0,0.0001726,2]
[390458735,1760052656870,-523.6,0.0001726,2]
[390458737,1760052656879,-1718.85,0.0001726,2]
[390458739,1760052656888,-500.0,0.0001726,2]
[390458754,1760052656897,-1939.01,0.0001726,2]
[390458758,1760052657044,-598.25,0.0001726,2]
[390458760,1760052657055,-600.0,0.0001728,2]
[390458762,1760052657064,-151.0,0.000173,2]
[390458764,1760052657073,-1000.0,0.00017321,2]
[390458766,1760052657082,-1000.0,0.00017321,2]
[390458768,1760052657091,-1070.46651296,0.00017321,2]
[390458770,1760052657100,-1000.0,0.00017321,2]
[390458772,1760052657109,-500.0,0.00017321,2]
[390458774,1760052657119,-498.07791259,0.00017321,2]
[390458776,1760052657128,-913.32657534,0.00017321,2]
[390458778,1760052657137,-626.82541977,0.00017321,2]
[390458780,1760052657146,-1000.0,0.00017321,2]
[390458782,1760052657155,-1061.542572,0.00017321,2]
[390458784,1760052657165,-501.03686346,0.00017321,2]
[390458786,1760052657174,-505.21896128,0.00017321,2]
[390458788,1760052657183,-1000.90537525,0.00017321,2]
[390458790,1760052657192,-1000.0,0.00017321,2]
[390458792,1760052657202,-1000.0,0.00017321,2]
[390458794,1760052657211,-151.0,0.00017321,2]
[390458796,1760052657220,-605.0,0.00017369,2]
[390458798,1760052657229,-151.0,0.000174,2]
[390458800,1760052657238,-605.0,0.00017402,2]
[390458802,1760052657247,-160.0,0.00017426,2]
[390458804,1760052657257,-402.15066402,0.00017431,2]
[390458805,1760052657266,-160.0,0.00017431,2]
[390458807,1760052657276,-234.29301719,0.00017431,2]
[390458809,1760052657284,-160.0,0.00017431,2]
[390458811,1760052657294,-160.0,0.00017431,2]
[390458813,1760052657303,-160.0,0.00017431,2]
[390458815,1760052657313,-417.15472785,0.00017431,2]
[390458817,1760052657322,-62403.24228925,0.00017434,2]
[390458819,1760052657332,-151.0,0.00017434,2]
[390458821,1760052657341,-151.0,0.00017434,2]
[390458823,1760052657352,-151.0,0.00017434,2]
[390458825,1760052657362,-600.0,0.0001746,2]
[390458827,1760052657371,-881.08214939,0.00017465,2]
[390458829,1760052657380,-278.83929934,0.000175,2]
[390458830,1760052657389,-605.0,0.00017521,2]
[390458832,1760052657399,-245.0,0.00017534,2]
[390458834,1760052657408,-500.0,0.00017534,2]
[390458836,1760052657417,-198.0,0.00017534,2]
[390458838,1760052657427,-500.0,0.00017534,2]
[390458840,1760052657437,-500.0,0.00017534,2]
[390458842,1760052657446,-500.0,0.00017534,2]
[390458844,1760052657456,-500.0,0.00017534,2]
[390458846,1760052657465,-438.76614488,0.00017534,2]
[390458848,1760052657475,-500.0,0.00017534,2]
[390458850,1760052657484,-500.0,0.00017534,2]
[390458852,1760052657494,-500.0,0.00017534,2]
[390458854,1760052657503,-562.37,0.00017534,2]
[390458856,1760052657512,-500.0,0.00017534,2]
[390458858,1760052657521,-1461.88,0.00017534,2]
[390458859,1760052657530,-509.21650591,0.00017534,2]
[390458861,1760052657539,-1681.53,0.00017534,2]
[390458863,1760052657548,-151.0,0.00017534,2]
[390458865,1760052657557,-500.0,0.00017534,2]
[390458867,1760052657566,-858.27,0.00017534,2]
[390458869,1760052657576,-768.91,0.00017534,2]
[390458871,1760052657585,-677.98,0.00017534,2]
[390458872,1760052657594,-500.0,0.00017534,2]
[390458874,1760052657604,-500.0,0.00017534,2]
[390458876,1760052657613,-271.67521249,0.00017534,2]
[390458878,1760052657623,-571.78,0.00017534,2]
[390458880,1760052657632,-183.26,0.00017534,2]
[390458882,1760052657642,-500.0,0.00017534,2]
[390458884,1760052657652,-500.0,0.00017534,2]
[390458886,1760052657661,-500.0,0.00017534,2]
[390458888,1760052657671,-500.0,0.00017534,2]
[390458890,1760052657680,-500.0,0.00017534,2]
[390458892,1760052657690,-737.89,0.00017534,2]
[390458894,1760052657699,-200.32,0.00017534,2]
[390458896,1760052657709,-500.0,0.00017534,2]
[390458898,1760052657718,-500.0,0.00017534,2]
[390458900,1760052657728,-500.0,0.00017534,2]
[390458902,1760052657736,-500.0,0.00017534,2]
[390458903,1760052657745,-500.0,0.00017534,2]
[390458905,1760052657755,-535.99,0.00017534,2]
[390458907,1760052657764,-770.97,0.00017534,2]
[390458909,1760052657774,-636.27,0.00017534,2]
[390458911,1760052657783,-3323.14,0.00017534,2]
[390458913,1760052657792,-500.0,0.00017534,2]
[390458915,1760052657802,-694.98,0.00017534,2]
[390458917,1760052657812,-1796.55,0.00017534,2]
[390458919,1760052657822,-500.0,0.00017534,2]
[390458921,1760052657831,-500.0,0.00017534,2]
[390458923,1760052657840,-204.29494275,0.00017534,2]
[390458925,1760052657850,-5308.6,0.00017534,2]
[390458927,1760052657860,-500.0,0.00017534,2]
[390458929,1760052657870,-500.0,0.00017534,2]
[390458931,1760052657879,-500.0,0.00017534,2]
[390458933,1760052657888,-643.09,0.00017534,2]
[390458935,1760052657897,-702.42,0.00017534,2]
[390458937,1760052657906,-2609.13,0.00017534,2]
[390458938,1760052657916,-515.72,0.00017534,2]
[390458940,1760052657929,-926.98,0.00017534,2]
[390458942,1760052657938,-500.0,0.00017534,2]
[390458944,1760052657947,-507.61,0.00017534,2]
[390458946,1760052657956,-500.0,0.00017534,2]
[390458948,1760052657967,-740.32,0.00017534,2]
[390458950,1760052657976,-622.77,0.00017534,2]
[390458951,1760052657984,-500.0,0.00017534,2]
[390458953,1760052657994,-1592.83,0.00017534,2]
[390458955,1760052658004,-3674.57,0.00017534,2]
[390458957,1760052658014,-1109.53,0.00017534,2]
[390458959,1760052658023,-500.0,0.00017534,2]
[390458960,1760052658032,-500.0,0.00017534,2]
[390458962,1760052658042,-4909.41,0.00017534,2]
[390458964,1760052658051,-500.0,0.00017534,2]
[390458966,1760052658060,-500.0,0.00017534,2]
[390458968,1760052658069,-518.79,0.00017534,2]
[390458970,1760052658079,-500.0,0.00017534,2]
[390458972,1760052658088,-821.67,0.00017534,2]
[390458974,1760052658097,-590.45,0.00017534,2]
[390458976,1760052658106,-823.34,0.00017534,2]
[390458977,1760052658115,-1394.28,0.00017534,2]
[390458979,1760052658124,-151.0,0.00017534,2]
[390458981,1760052658134,-607.64,0.00017534,2]
[390458983,1760052658143,-615.39,0.00017534,2]
[390458985,1760052658152,-745.08,0.00017534,2]
[390458987,1760052658160,-151.0,0.00017534,2]
[390458989,1760052658170,-152.939898,0.00017534,2]
[390458991,1760052658179,-151.0,0.00017534,2]
[390458993,1760052658188,-1737.81,0.00017534,2]
[390458994,1760052658197,-630.45,0.00017534,2]
[390458996,1760052658206,-151.0,0.00017534,2]
[390458998,1760052658216,-692.15,0.00017534,2]
[390459000,1760052658225,-935.89,0.00017534,2]
[390459002,1760052658234,-151.0,0.00017534,2]
[390459004,1760052658243,-4559.56,0.00017534,2]
[390459006,1760052658252,-151.0,0.00017534,2]
[390459008,1760052658262,-1000.11,0.00017534,2]
[390459010,1760052658271,-151.0,0.00017534,2]
[390459012,1760052658280,-151.0,0.00017534,2]
[390459014,1760052658289,-500.0,0.00017534,2]
[390459015,1760052658299,-500.0,0.00017534,2]
[390459017,1760052658308,-2438.6,0.00017534,2]
[390459019,1760052658319,-614.23,0.00017534,2]
[390459021,1760052658328,-500.0,0.00017534,2]
[390459023,1760052658337,-151.0,0.00017534,2]
[390459025,1760052658346,-151.0,0.00017534,2]
[390459027,1760052658355,-151.0,0.00017534,2]
[390459029,1760052658364,-500.0,0.00017534,2]
[390459031,1760052658373,-151.0,0.00017534,2]
[390459032,1760052658383,-708.62,0.00017534,2]
[390459034,1760052658392,-524.9,0.00017534,2]
[390459036,1760052658401,-1887.49,0.00017534,2]
[390459038,1760052658410,-500.0,0.00017534,2]
[390459040,1760052658421,-151.0,0.00017534,2]
[390459042,1760052658430,-151.0,0.00017534,2]
[390459044,1760052658440,-500.0,0.00017534,2]
[390459046,1760052658449,-151.0,0.00017534,2]
[390459048,1760052658458,-151.0,0.00017534,2]
[390459050,1760052658467,-523.6,0.00017534,2]
[390459052,1760052658476,-151.0,0.00017534,2]
[390459054,1760052658485,-151.0,0.00017534,2]
[390459055,1760052658495,-1718.85,0.00017534,2]
[390459057,1760052658504,-500.0,0.00017534,2]
[390459059,1760052658514,-1939.01,0.00017534,2]
[390459061,1760052658524,-598.25,0.00017534,2]
[390459063,1760052658533,-779.979079,0.00017546,2]
[390459065,1760052658542,-1516.72694042,0.00017568,2]
[390459067,1760052658551,-500.0,0.00017568,2]
[390459069,1760052658561,-1217.33863256,0.00017568,2]
[390459071,1760052658570,-1500.0,0.00017568,2]
[390459072,1760052658579,-681.93753704,0.00017568,2]
[390459074,1760052658589,-305.04336075,0.00017568,2]
[390459076,1760052658599,-1500.0,0.00017568,2]
[390459078,1760052658608,-1500.0,0.00017568,2]
[390459080,1760052658617,-1500.0,0.00017568,2]
[390459082,1760052658626,-1500.0,0.00017568,2]
[390459084,1760052658635,-1500.0,0.00017568,2]
[390459085,1760052658644,-1500.0,0.00017568,2]
[390459087,1760052658653,-1500.0,0.00017568,2]
[390459089,1760052658662,-1500.0,0.00017568,2]
[390459091,1760052658672,-511.51673803,0.00017568,2]
[390459093,1760052658682,-1500.0,0.00017568,2]
[390459095,1760052658691,-278.83929934,0.000176,2]
[390459097,1760052658700,-605.0,0.00017627,2]
[390459099,1760052658709,-605.0,0.00017633,2]
[390459101,1760052658719,-1305.42814609,0.0001764,2]
[390459102,1760052658728,-600.0,0.0001764,2]
[390459104,1760052658738,-213.991,0.00017693,2]
[390459106,1760052658747,-605.0,0.00017726,2]
[390459108,1760052658756,-151.0,0.00017762,2]
[390459110,1760052658765,-151.0,0.00017762,2]
[390459112,1760052658774,-151.0,0.00017762,2]
[390459114,1760052658783,-605.0,0.00017762,2]
[390459116,1760052658792,-605.0,0.00017777,2]
[390459118,1760052658802,-1308.84010418,0.00017791,2]
[390459119,1760052658810,-278.83929934,0.000178,2]
[390459121,1760052658819,-605.0,0.00017801,2]
[390459123,1760052658829,-5888.0,0.00017804,2]
[390459125,1760052658838,-351.47199974,0.00017806,2]
[390459127,1760052658847,-1000.0,0.00017806,2]
[390459129,1760052658856,-323.59985086,0.00017808,2]
[390459130,1760052658865,-500.0,0.00017808,2]
[390459132,1760052658875,-500.0,0.00017808,2]
[390459134,1760052658884,-500.0,0.00017808,2]
[390459136,1760052658893,-500.0,0.00017808,2]
[390459138,1760052658902,-500.0,0.00017808,2]
[390459140,1760052658911,-500.0,0.00017808,2]
[390459142,1760052658920,-500.0,0.00017808,2]
[390459143,1760052658934,-198.32734328,0.00017808,2]
[390459145,1760052658942,-792.51606375,0.00017808,2]
[390459147,1760052658951,-1461.88,0.00017808,2]
[390459149,1760052658961,-1681.53,0.00017808,2]
[390459151,1760052658971,-185.400906,0.00017808,2]
[390459153,1760052658980,-702.18826949,0.00017808,2]
[390459155,1760052658990,-224.22,0.00017808,2]